fUSD/lending_fUSD_20250702
["ID","MTS","AMOUNT","RATE_DAILY","PERIOD"]
[369084316,1751461861164,-2174.06,0.0003315,12]
[369084317,1751461861174,-1120.2,0.0003315,12]
[369084318,1751461861184,-460.0,0.0003315,12]
[369084319,1751461861193,-535.52,0.0003315,12]
[369084320,1751461861203,-3169.8,0.0003315,12]
[369084321,1751461861213,-460.0,0.0003315,12]
[369084322,1751461861223,-2104.41,0.0003315,12]
[369084323,1751461861233,-484.34,0.0003315,12]
[369084324,1751461861243,-1275.26,0.0003315,12]
[369084325,1751461861253,-723.01,0.0003315,12]
[369084326,1751461861263,-1464.54,0.0003315,12]
[369084327,1751461861273,-570.5,0.0003315,12]
[369084328,1751461861283,-1565.03,0.0003315,12]
[369084329,1751461861292,-460.0,0.0003315,12]
[369084330,1751461861302,-460.0,0.0003315,12]
[369084331,1751461861311,-1504.75,0.0003315,12]
[369084332,1751461861320,-18687.29,0.0003315,12]
[369084333,1751461861330,-460.0,0.0003315,12]
[369084334,1751461861340,-1615.38,0.0003315,12]
[369084335,1751461861350,-549.24,0.0003315,12]
[369084336,1751461861359,-520.0,0.0003315,12]
[369084337,1751461861368,-460.0,0.0003315,12]
[369084338,1751461861378,-957.18,0.0003315,12]
[369084339,1751461861388,-460.0,0.0003315,12]
[369084340,1751461861397,-1198.72,0.0003315,12]
[369084341,1751461861407,-3087.78,0.0003315,12]
[369084342,1751461861418,-216.42222535,0.0003315,12]
[369084343,1751461861430,-964.37,0.0003315,12]
[369084344,1751461861440,-1500.0,0.0003315,60]
[369084345,1751461861450,-556.76580777,0.0003315,12]
[369084346,1751461861459,-1100.86,0.0003315,12]
[369084347,1751461861469,-460.0,0.0003315,12]
[369084348,1751461861479,-520.0,0.0003315,12]
[369084349,1751461861488,-460.0,0.0003315,12]
[369084350,1751461861498,-2230.31,0.0003315,12]
[369084351,1751461861507,-460.0,0.0003315,12]
[369084352,1751461861518,-3294.96,0.0003315,12]
[369084353,1751461861527,-460.0,0.0003315,12]
[369084354,1751461861537,-460.0,0.0003315,12]
[369084355,1751461861547,-460.0,0.0003315,12]
[369084356,1751461861556,-1685.4,0.0003315,12]
[369084357,1751461861566,-121917.67,0.0003315,12]
[369084358,1751461861575,-2147.17,0.0003315,12]
[369084359,1751461861585,-1192.83,0.0003315,12]
[369084360,1751461861595,-470.49,0.0003315,12]
[369084361,1751461861604,-460.0,0.0003315,12]
[369084362,1751461861614,-460.0,0.0003315,12]
[369084363,1751461861624,-460.0,0.0003315,12]
[369084364,1751461861633,-1232.51,0.0003315,12]
[369084365,1751461861643,-460.0,0.0003315,12]
[369084366,1751461861653,-1549.15,0.0003315,12]
[369084367,1751461861663,-1461.97,0.0003315,12]
[369084368,1751461861672,-468.33,0.0003315,12]
[369084369,1751461861681,-460.0,0.0003315,12]
[369084370,1751461861692,-996.74,0.0003315,12]
[369084371,1751461861702,-1985.92,0.0003315,12]
[369084372,1751461861711,-460.0,0.0003315,12]
[369084373,1751461861720,-1444.9,0.0003315,12]
[369084374,1751461861730,-460.0,0.0003315,12]
[369084375,1751461861739,-6645.29,0.0003315,12]
[369084376,1751461861749,-460.0,0.0003315,12]
[369084377,1751461861759,-2332.84,0.0003315,12]
[369084378,1751461861768,-3858.19,0.0003315,12]
[369084379,1751461861778,-460.0,0.0003315,12]
[369084380,1751461861788,-460.0,0.0003315,12]
[369084381,1751461861798,-520.0,0.0003315,12]
[369084382,1751461861807,-460.0,0.0003315,12]
[369084383,1751461861817,-460.0,0.0003315,120]
[369084384,1751461861827,-460.0,0.0003315,12]
[369084385,1751461861836,-1561.64,0.0003315,12]
[369084386,1751461861846,-460.0,0.0003315,12]
[369084387,1751461861855,-527.45,0.0003315,12]
[369084388,1751461861865,-774.0,0.0003315,12]
[369084389,1751461861875,-460.0,0.0003315,12]
[369084390,1751461861887,-460.0,0.0003315,12]
[369084391,1751461861896,-2002.08,0.0003315,12]
[369084392,1751461861906,-2292.38,0.0003315,12]
[369084393,1751461861917,-1502.0,0.0003315,12]
[369084394,1751461861926,-460.0,0.0003315,12]
[369084395,1751461861936,-485.37,0.0003315,12]
[369084396,1751461861948,-570.37,0.0003315,12]
[369084397,1751461861958,-2777.15,0.0003315,12]
[369084398,1751461861968,-460.0,0.0003315,12]
[369084399,1751461861978,-614.18,0.0003315,12]
[369084400,1751461861988,-6187.21,0.0003315,12]
[369084401,1751461861997,-1192.74,0.0003315,12]
[369084402,1751461862007,-1187.18,0.0003315,12]
[369084403,1751461862018,-520.0,0.0003315,12]
[369084404,1751461862027,-460.0,0.0003315,12]
[369084405,1751461862038,-520.0,0.0003315,12]
[369084406,1751461862047,-1261.29,0.0003315,12]
[369084407,1751461862056,-520.0,0.0003315,12]
[369084408,1751461862067,-520.0,0.0003315,12]
[369084409,1751461862076,-460.0,0.0003315,12]
[369084410,1751461862087,-496.52615105,0.0003315,12]
[369084411,1751461862096,-1121.79,0.0003315,12]
[369084412,1751461862108,-1503.48,0.0003315,12]
[369084413,1751461862117,-552.89,0.0003315,12]
[369084414,1751461862127,-2349.24,0.0003315,12]
[369084415,1751461862137,-846.63,0.0003315,12]
[369084416,1751461862147,-460.0,0.0003315,12]
[369084417,1751461862156,-520.0,0.0003315,12]
[369084418,1751461862165,-2685.38,0.0003315,12]
[369084419,1751461862174,-460.0,0.0003315,12]
[369084420,1751461862183,-5750.28,0.0003315,12]
[369084421,1751461862193,-460.0,0.0003315,12]
[369084422,1751461862203,-574.34621164,0.0003315,12]
[369084423,1751461862212,-1639.62,0.0003315,12]
[369084424,1751461862221,-523.53564366,0.0003315,12]
[369084425,1751461862231,-460.0,0.0003315,12]
[369084426,1751461862240,-2717.33,0.0003315,12]
[369084427,1751461862250,-759.97,0.0003315,12]
[369084428,1751461862260,-3117.8,0.0003315,12]
[369084429,1751461862270,-460.0,0.0003315,12]
[369084430,1751461862279,-1623.92,0.0003315,12]
[369084431,1751461862288,-722.87,0.0003315,12]
[369084432,1751461862298,-460.0,0.0003315,12]
[369084433,1751461862307,-2244.04,0.0003315,12]
[369084434,1751461862316,-996.72,0.0003315,12]
[369084435,1751461862326,-1089.24,0.0003315,12]
[369084436,1751461862335,-2077.98,0.0003315,12]
[369084437,1751461862345,-460.0,0.0003315,12]
[369084438,1751461862354,-5002.01,0.0003315,12]
[369084439,1751461862364,-460.0,0.0003315,12]
[369084440,1751461862373,-460.0,0.0003315,12]
[369084441,1751461862383,-460.0,0.0003315,12]
[369084442,1751461862392,-460.0,0.0003315,12]
[369084443,1751461862403,-460.0,0.0003315,12]
[369084444,1751461862413,-460.0,0.0003315,12]
[369084445,1751461862423,-1450.37,0.0003315,12]
[369084446,1751461862433,-1083.75,0.0003315,12]
[369084447,1751461862442,-460.0,0.0003315,12]
[369084448,1751461862530,-520.0,0.0003315,12]
[369084449,1751461862539,-2758.03,0.0003315,12]
[369084450,1751461862549,-16881.97,0.0003315,12]
[369084451,1751461862559,-611.29,0.0003315,12]
[369084452,1751461862568,-4170.4,0.0003315,12]
[369084453,1751461862578,-520.0,0.0003315,12]
[369084454,1751461862587,-460.0,0.0003315,12]
[369084455,1751461862596,-1124.72,0.0003315,12]
[369084456,1751461862605,-1172.96,0.0003315,12]
[369084457,1751461862614,-460.0,0.0003315,12]
[369084458,1751461862623,-460.0,0.0003315,12]
[369084459,1751461862632,-460.0,0.0003315,12]
[369084460,1751461862641,-460.0,0.0003315,12]
[369084461,1751461862651,-1480.19,0.0003315,12]
[369084462,1751461862660,-460.0,0.0003315,12]
[369084463,1751461862669,-460.0,0.0003315,12]
[369084464,1751461862679,-520.0,0.0003315,12]
[369084465,1751461862688,-460.0,0.0003315,12]
[369084466,1751461862697,-449.48441909,0.0003315,12]
[369084467,1751461862706,-1743.45,0.0003315,12]
[369084468,1751461862716,-460.0,0.0003315,12]
[369084469,1751461862725,-585.92,0.0003315,12]
[369084470,1751461862734,-982.01,0.0003315,12]
[369084471,1751461862743,-1155.05,0.0003315,12]
[369084472,1751461862753,-1467.16,0.0003315,12]
[369084473,1751461862762,-460.0,0.0003315,12]
[369084474,1751461862772,-554.93,0.0003315,12]
[369084475,1751461862782,-496.8,0.0003315,12]
[369084476,1751461862792,-785.12,0.0003315,12]
[369084477,1751461862802,-460.0,0.0003315,12]
[369084478,1751461862811,-520.0,0.0003315,12]
[369084479,1751461862821,-460.0,0.0003315,12]
[369084480,1751461862830,-7273.92,0.0003315,12]
[369084481,1751461862841,-916.28,0.0003315,12]
[369084482,1751461862851,-460.0,0.0003315,12]
[369084483,1751461862861,-209.04793915,0.00033151,2]
[369084484,1751461862870,-2000.0,0.000332,2]
[369084485,1751461862880,-277597.52,0.000332,14]
[369084486,1751461862890,-151.0,0.000332,7]
[369084487,1751461862899,-661.36828034,0.00033228,2]
[369084488,1751461862909,-150.0,0.00033269,2]
[369084489,1751461862919,-208.22870945,0.000333,28]
[369084490,1751461862928,-661.36828034,0.00033321,2]
[369084491,1751461862938,-275.61397188,0.00033324,2]
[369084492,1751461862947,-701.67220228,0.00033324,6]
[369084493,1751461862957,-2159.30478376,0.00033324,2]
[369084494,1751461862966,-160.72457097,0.00033324,2]
[369084495,1751461862975,-13048.8698112,0.00033324,2]
[369084496,1751461862986,-150.0,0.00033353,2]
[369084497,1751461862995,-500.0,0.0003336,12]
[369084498,1751461863006,-500.0,0.0003336,12]
[369084499,1751461863015,-500.0,0.0003336,12]
[369084500,1751461863025,-500.0,0.0003336,12]
[369084501,1751461863034,-500.0,0.0003336,12]
[369084502,1751461863044,-500.0,0.0003336,12]
[369084503,1751461863054,-500.0,0.0003336,12]
[369084504,1751461863064,-500.0,0.0003336,12]
[369084505,1751461863074,-500.0,0.0003336,12]
[369084506,1751461863083,-500.0,0.0003336,12]
[369084507,1751461863093,-1000.0,0.00033382,2]
[369084508,1751461863102,-9857.48,0.000334,5]
[369084509,1751461863112,-661.36828034,0.00033413,2]
[369084510,1751461863122,-206.18077817,0.00033415,2]
[369084511,1751461863131,-500.0,0.00033424,2]
[369084512,1751461863141,-445.0,0.00033424,2]
[369084513,1751461863150,-770.87,0.00033424,12]
[369084514,1751461863159,-460.0,0.00033424,12]
[369084515,1751461863169,-460.0,0.00033424,12]
[369084516,1751461863178,-460.0,0.00033424,12]
[369084517,1751461863187,-1000.0,0.00033424,12]
[369084518,1751461863197,-460.0,0.00033424,12]
[369084519,1751461863206,-460.0,0.00033424,12]
[369084520,1751461863215,-460.0,0.00033424,12]
[369084521,1751461863224,-464.12332738,0.00033424,12]
[369084522,1751461863234,-460.0,0.00033424,12]
[369084523,1751461863243,-460.0,0.00033424,12]
[369084524,1751461863253,-460.0,0.00033424,12]
[369084525,1751461863262,-460.0,0.00033424,12]
[369084526,1751461863271,-460.0,0.00033424,12]
[369084527,1751461863281,-460.0,0.00033424,12]
[369084528,1751461863290,-460.0,0.00033424,12]
[369084529,1751461863299,-460.0,0.00033424,12]
[369084530,1751461863308,-460.0,0.00033424,12]
[369084531,1751461863318,-460.0,0.00033424,12]
[369084532,1751461863328,-460.0,0.00033424,12]
[369084533,1751461863337,-460.0,0.00033424,12]
[369084534,1751461863347,-460.0,0.00033424,12]
[369084535,1751461863356,-584.2514357,0.00033424,12]
[369084536,1751461863365,-460.0,0.00033424,12]
[369084537,1751461863374,-460.0,0.00033424,12]
[369084538,1751461863383,-460.0,0.00033424,12]
[369084539,1751461863393,-460.0,0.00033424,12]
[369084540,1751461863403,-460.0,0.00033424,12]
[369084541,1751461863412,-460.0,0.00033424,12]
[369084542,1751461863422,-460.0,0.00033424,12]
[369084543,1751461863431,-460.0,0.00033424,12]
[369084544,1751461863444,-460.0,0.00033424,12]
[369084545,1751461863461,-460.0,0.00033424,12]
[369084546,1751461863477,-460.0,0.00033424,12]
[369084547,1751461863486,-460.0,0.00033424,12]
[369084548,1751461863496,-460.0,0.00033424,12]
[369084549,1751461863506,-460.0,0.00033424,12]
[369084550,1751461863515,-460.0,0.00033424,12]
[369084551,1751461863525,-511.13864509,0.00033424,12]
[369084552,1751461863534,-537.74988988,0.00033424,12]
[369084553,1751461863543,-550.0,0.00033424,12]
[369084554,1751461863553,-460.0,0.00033424,12]
[369084555,1751461863562,-460.0,0.00033424,12]
[369084556,1751461863572,-460.0,0.00033424,12]
[369084557,1751461863583,-558.5,0.00033424,12]
[369084558,1751461863593,-550.0,0.00033424,12]
[369084559,1751461863603,-244.24756841,0.00033424,12]
[369084560,1751461863613,-460.0,0.00033424,12]
[369084561,1751461863622,-558.04515307,0.00033424,12]
[369084562,1751461863631,-460.0,0.00033424,12]
[369084563,1751461863640,-460.0,0.00033424,12]
[369084564,1751461863649,-460.0,0.00033424,12]
[369084565,1751461863659,-460.0,0.00033424,12]
[369084566,1751461863669,-460.0,0.00033424,12]
[369084567,1751461863679,-460.0,0.00033424,12]
[369084568,1751461863688,-460.0,0.00033424,12]
[369084569,1751461863697,-460.0,0.00033424,12]
[369084570,1751461863707,-460.0,0.00033424,12]
[369084571,1751461863717,-460.0,0.00033424,12]
[369084572,1751461863727,-550.0,0.00033424,12]
[369084573,1751461863736,-460.0,0.00033424,12]
[369084574,1751461863746,-460.0,0.00033424,12]
[369084575,1751461863756,-174.80991053,0.00033424,12]
[369084576,1751461863765,-550.0,0.00033424,12]
[369084577,1751461863775,-460.0,0.00033424,12]
[369084578,1751461863784,-460.0,0.00033424,12]
[369084579,1751461863793,-460.0,0.00033424,12]
[369084580,1751461863802,-460.0,0.00033424,12]
[369084581,1751461863811,-460.0,0.00033424,12]
[369084582,1751461863820,-460.0,0.00033424,12]
[369084583,1751461863830,-460.0,0.00033424,12]
[369084584,1751461863839,-551.77836144,0.00033424,12]
[369084585,1751461863849,-651.92,0.00033424,12]
[369084586,1751461863858,-460.0,0.00033424,12]
[369084587,1751461863867,-460.0,0.00033424,12]
[369084588,1751461863876,-460.0,0.00033424,12]
[369084589,1751461863891,-550.0,0.00033424,12]
[369084590,1751461863900,-460.0,0.00033424,12]
[369084591,1751461863910,-460.0,0.00033424,12]
[369084592,1751461863919,-460.0,0.00033424,12]
[369084593,1751461863928,-460.0,0.00033424,12]
[369084594,1751461863938,-550.0,0.00033424,12]
[369084595,1751461863948,-550.0,0.00033424,12]
[369084596,1751461863957,-460.0,0.00033424,12]
[369084597,1751461863966,-460.0,0.00033424,12]
[369084598,1751461863976,-561.2,0.00033424,12]
[369084599,1751461863985,-460.0,0.00033424,12]
[369084600,1751461863994,-805.92,0.00033424,12]
[369084601,1751461864003,-493.88,0.00033424,12]
[369084602,1751461864012,-460.0,0.00033424,7]
[369084603,1751461864021,-460.0,0.00033424,12]
[369084604,1751461864031,-460.0,0.00033424,12]
[369084605,1751461864040,-460.0,0.00033424,12]
[369084606,1751461864050,-550.0,0.00033424,12]
[369084607,1751461864059,-460.0,0.00033424,12]
[369084608,1751461864068,-460.0,0.00033424,12]
[369084609,1751461864078,-460.0,0.00033424,12]
[369084610,1751461864087,-460.0,0.00033424,12]
[369084611,1751461864097,-460.0,0.00033424,12]
[369084612,1751461864107,-564.02831498,0.00033424,12]
[369084613,1751461864116,-460.0,0.00033424,12]
[369084614,1751461864125,-460.0,0.00033424,12]
[369084615,1751461864134,-780.1,0.00033424,12]
[369084616,1751461864144,-460.0,0.00033424,12]
[369084617,1751461864153,-460.0,0.00033424,12]
[369084618,1751461864163,-460.0,0.00033424,12]
[369084619,1751461864173,-460.0,0.00033424,12]
[369084620,1751461864183,-460.0,0.00033424,12]
[369084621,1751461864192,-460.0,0.00033424,12]
[369084622,1751461864202,-550.0,0.00033424,12]
[369084623,1751461864211,-460.0,0.00033424,12]
[369084624,1751461864221,-460.0,0.00033424,12]
[369084625,1751461864230,-569.12,0.00033424,12]
[369084626,1751461864240,-2227.15,0.00033424,12]
[369084627,1751461864250,-550.0,0.00033424,12]
[369084628,1751461864260,-550.0,0.00033424,12]
[369084629,1751461864269,-496.80792586,0.00033424,12]
[369084630,1751461864279,-460.0,0.00033424,12]
[369084631,1751461864288,-468.54,0.00033424,12]
[369084632,1751461864297,-555.99625303,0.00033424,12]
[369084633,1751461864307,-593.14,0.00033424,12]
[369084634,1751461864315,-460.0,0.00033424,12]
[369084635,1751461864323,-460.0,0.00033424,12]
[369084636,1751461864332,-460.0,0.00033424,12]
[369084637,1751461864340,-550.0,0.00033424,12]
[369084638,1751461864350,-460.0,0.00033424,12]
[369084639,1751461864359,-334.09,0.00033424,12]
[369084640,1751461864369,-460.0,0.00033424,12]
[369084641,1751461864378,-460.0,0.00033424,12]
[369084642,1751461864388,-460.0,0.00033424,12]
[369084643,1751461864398,-460.0,0.00033424,12]
[369084644,1751461864407,-474.82,0.00033424,12]
[369084645,1751461864417,-1133.38,0.00033424,12]
[369084646,1751461864426,-460.0,0.00033424,7]
[369084647,1751461864435,-460.0,0.00033424,12]
[369084648,1751461864445,-460.0,0.00033424,12]
[369084649,1751461864454,-460.0,0.00033424,12]
[369084650,1751461864463,-894.84,0.00033424,12]
[369084651,1751461864472,-426.71323738,0.00033424,12]
[369084652,1751461864482,-550.0,0.00033424,12]
[369084653,1751461864492,-2289.32,0.00033424,12]
[369084654,1751461864503,-552.67,0.00033424,12]
[369084655,1751461864512,-726.41,0.00033424,12]
[369084656,1751461864521,-460.0,0.00033424,12]
[369084657,1751461864531,-2409.68,0.00033424,12]
[369084658,1751461864543,-460.0,0.00033424,12]
[369084659,1751461864552,-460.0,0.00033424,12]
[369084660,1751461864562,-460.0,0.00033424,12]
[369084661,1751461864571,-460.0,0.00033424,12]
[369084662,1751461864581,-460.0,0.00033424,12]
[369084663,1751461864591,-460.0,0.00033424,12]
[369084664,1751461864600,-460.0,0.00033424,12]
[369084665,1751461864609,-460.0,0.00033424,12]
[369084666,1751461864618,-460.0,0.00033424,12]
[369084667,1751461864628,-460.0,0.00033424,12]
[369084668,1751461864639,-1285.53,0.00033424,12]
[369084669,1751461864648,-460.0,0.00033424,12]
[369084670,1751461864658,-460.0,0.00033424,12]
[369084671,1751461864667,-460.0,0.00033424,12]
[369084672,1751461864676,-460.0,0.00033424,12]
[369084673,1751461864686,-1773.86,0.00033424,12]
[369084674,1751461864695,-460.0,0.00033424,12]
[369084675,1751461864704,-460.0,0.00033424,12]
[369084676,1751461864713,-460.0,0.00033424,12]
[369084677,1751461864722,-953.08,0.00033424,12]
[369084678,1751461864731,-580.0,0.00033424,12]
[369084679,1751461864740,-580.0,0.00033424,12]
[369084680,1751461864750,-460.0,0.00033424,12]
[369084681,1751461864759,-460.0,0.00033424,12]
[369084682,1751461864768,-341.35182096,0.00033424,12]
[369084683,1751461864777,-460.0,0.00033424,12]
[369084684,1751461864787,-460.0,0.00033424,12]
[369084685,1751461864797,-460.0,0.00033424,12]
[369084686,1751461864806,-888.96,0.00033424,12]
[369084687,1751461864816,-460.0,0.00033424,12]
[369084688,1751461864825,-553.37788712,0.00033424,12]
[369084689,1751461864835,-460.0,0.00033424,12]
[369084690,1751461864844,-460.0,0.00033424,12]
[369084691,1751461864854,-460.0,0.00033424,12]
[369084692,1751461864864,-460.0,0.00033424,12]
[369084693,1751461864874,-460.0,0.00033424,12]
[369084694,1751461864886,-773.32,0.00033424,12]
[369084695,1751461864895,-151.0,0.00033424,7]
[369084696,1751461864904,-151.0,0.00033424,7]
[369084697,1751461864914,-1156.67,0.00033424,12]
[369084698,1751461864923,-529.26,0.00033424,12]
[369084699,1751461864932,-550.0,0.00033424,12]
[369084700,1751461864942,-1283.75,0.00033424,12]
[369084701,1751461864952,-794.05,0.00033424,12]
[369084702,1751461864962,-460.0,0.00033424,12]
[369084703,1751461864972,-460.0,0.00033424,12]
[369084704,1751461864982,-460.0,0.00033424,12]
[369084705,1751461864992,-538.74,0.00033424,12]
[369084706,1751461865001,-460.0,0.00033424,12]
[369084707,1751461865011,-460.0,0.00033424,12]
[369084708,1751461865022,-460.0,0.00033424,12]
[369084709,1751461865031,-460.0,0.00033424,12]
[369084710,1751461865041,-460.0,0.00033424,12]
[369084711,1751461865050,-424.68,0.00033424,12]
[369084712,1751461865060,-586.0687673,0.00033424,12]
[369084713,1751461865070,-460.0,0.00033424,12]
[369084714,1751461865080,-460.0,0.00033424,12]
[369084715,1751461865090,-573.5,0.00033424,12]
[369084716,1751461865100,-460.0,0.00033424,12]
[369084717,1751461865111,-460.0,0.00033424,12]
[369084718,1751461865121,-460.0,0.00033424,12]
[369084719,1751461865131,-580.0,0.00033424,12]
[369084720,1751461865140,-460.0,0.00033424,12]
[369084721,1751461865151,-576.5,0.00033424,12]
[369084722,1751461865161,-508.31,0.00033424,12]
[369084723,1751461865171,-2068.42,0.00033424,12]
[369084724,1751461865180,-460.0,0.00033424,12]
[369084725,1751461865190,-460.0,0.00033424,12]
[369084726,1751461865200,-460.0,0.00033424,12]
[369084727,1751461865210,-460.0,0.00033424,12]
[369084728,1751461865220,-460.0,0.00033424,12]
[369084729,1751461865230,-460.0,0.00033424,12]
[369084730,1751461865240,-580.0,0.00033424,12]
[369084731,1751461865250,-460.0,0.00033424,12]
[369084732,1751461865260,-460.0,0.00033424,12]
[369084733,1751461865270,-944.75,0.00033424,12]
[369084734,1751461865280,-460.0,0.00033424,12]
[369084735,1751461865291,-885.08,0.00033424,12]
[369084736,1751461865300,-594.93272066,0.00033424,12]
[369084737,1751461865310,-552.26897953,0.00033424,12]
[369084738,1751461865320,-461.44,0.00033424,12]
[369084739,1751461865331,-1201.63,0.00033424,12]
[369084740,1751461865340,-502.72345247,0.00033424,12]
[369084741,1751461865351,-460.0,0.00033424,12]
[369084742,1751461865361,-460.0,0.00033424,12]
[369084743,1751461865371,-1504.69,0.00033424,12]
[369084744,1751461865381,-460.0,0.00033424,12]
[369084745,1751461865390,-157.67,0.00033424,12]
[369084746,1751461865400,-460.0,0.00033424,12]
[369084747,1751461865410,-460.0,0.00033424,12]
[369084748,1751461865419,-460.0,0.00033424,12]
[369084749,1751461865429,-230.61333792,0.00033424,12]
[369084750,1751461865439,-460.0,0.00033424,12]
[369084751,1751461865449,-460.0,0.00033424,12]
[369084752,1751461865459,-272.38449156,0.00033424,12]
[369084753,1751461865469,-580.0,0.00033424,12]
[369084754,1751461865479,-460.0,0.00033424,12]
[369084755,1751461865489,-463.86,0.00033424,12]
[369084756,1751461865499,-304.88581094,0.00033424,12]
[369084757,1751461865509,-460.0,0.00033424,12]
[369084758,1751461865519,-460.0,0.00033424,12]
[369084759,1751461865528,-460.0,0.00033424,12]
[369084760,1751461865538,-1589.24,0.00033424,12]
[369084761,1751461865548,-460.0,0.00033424,12]
[369084762,1751461865558,-460.0,0.00033424,12]
[369084763,1751461865567,-460.0,0.00033424,12]
[369084764,1751461865577,-580.0,0.00033424,12]
[369084765,1751461865587,-709.02,0.00033424,12]
[369084766,1751461865597,-460.0,0.00033424,12]
[369084767,1751461865607,-769.67,0.00033424,12]
[369084768,1751461865616,-460.0,0.00033424,12]
[369084769,1751461865627,-460.0,0.00033424,12]
[369084770,1751461865638,-460.0,0.00033424,12]
[369084771,1751461865648,-4599.47,0.00033424,12]
[369084772,1751461865658,-460.0,0.00033424,12]
[369084773,1751461865669,-539.21,0.00033424,12]
[369084774,1751461865679,-914.53,0.00033424,12]
[369084775,1751461865689,-460.0,0.00033424,12]
[369084776,1751461865698,-460.0,0.00033424,12]
[369084777,1751461865709,-460.0,0.00033424,12]
[369084778,1751461865719,-475.07,0.00033424,12]
[369084779,1751461865729,-887.47,0.00033424,12]
[369084780,1751461865739,-527.88,0.00033424,12]
[369084781,1751461865750,-232.1883599,0.00033424,12]
[369084782,1751461865760,-1036.46,0.00033424,12]
[369084783,1751461865770,-460.0,0.00033424,12]
[369084784,1751461865780,-460.0,0.00033424,12]
[369084785,1751461865790,-460.0,0.00033424,12]
[369084786,1751461865799,-460.0,0.00033424,12]
[369084787,1751461865810,-460.0,0.00033424,12]
[369084788,1751461865819,-460.0,0.00033424,12]
[369084789,1751461865829,-589.74,0.00033424,12]
[369084790,1751461865839,-562.15,0.00033424,12]
[369084791,1751461865850,-460.0,0.00033424,12]
[369084792,1751461865860,-460.0,0.00033424,12]
[369084793,1751461865869,-938.24,0.00033424,12]
[369084794,1751461865879,-460.0,0.00033424,12]
[369084795,1751461865892,-1313.27,0.00033424,12]
[369084796,1751461865902,-460.0,0.00033424,12]
[369084797,1751461865912,-460.0,0.00033424,12]
[369084798,1751461865922,-460.0,0.00033424,12]
[369084799,1751461865932,-262.09784916,0.00033424,12]
[369084800,1751461865942,-878.48,0.00033424,12]
[369084801,1751461865951,-460.0,0.00033424,12]
[369084802,1751461865961,-460.0,0.00033424,12]
[369084803,1751461865971,-460.0,0.00033424,12]
[369084804,1751461865981,-460.0,0.00033424,12]
[369084805,1751461865991,-728.56,0.00033424,12]
[369084806,1751461866001,-498.42,0.00033424,12]
[369084807,1751461866011,-460.0,0.00033424,12]
[369084808,1751461866022,-460.0,0.00033424,12]
[369084809,1751461866032,-534.37,0.00033424,12]
[369084810,1751461866042,-460.0,0.00033424,12]
[369084811,1751461866051,-462.99,0.00033424,12]
[369084812,1751461866062,-460.0,0.00033424,12]
[369084813,1751461866072,-460.0,0.00033424,12]
[369084814,1751461866082,-1371.6,0.00033424,12]
[369084815,1751461866092,-460.0,0.00033424,12]